Cogmind - Beta 10.1 @@@ ROGUE MODE // 2020.10.01 @ 04:08:31 Player: Xeram Result: Destroyed by S-10 Pest with Light Assault Rifle Performance ------------- Evolutions (1) 500 Regions Visited (3) 600 Robots Destroyed (75) 375 Value Destroyed (2115) 2115 Prototype IDs (0) 0 Alien Tech Used (0) 0 Bonus (141) 141 TOTAL SCORE: 3731 Bonus ------- High Alert Combat Kills 141 Cogmind --------- Core Integrity 0/400 Matter 300/300 Energy 253/265 System Corruption 9% Temperature Cool (0) Movement Hovering (116) Ox1 Location -9/Materials Parts ------- > --- POWER (1) -------- Improved Ion Engine > --- PROPULSION (2) --- Hover Unit Hover Unit > --- UTILITY (4) ------ Heat Sink Cooling System Salvage Targeting Computer > --- WEAPON (2) ------- Ion Cannon > --- INVENTORY (4) ---- Ion Engine Aluminum Leg EM Shotgun EM Shotgun Peak State ------------ > --- POWER ------------ Improved Ion Engine > --- PROPULSION ------- Hover Unit Hover Unit > --- UTILITY ---------- Heat Sink Cooling System Salvage Targeting Computer > --- WEAPON ----------- Ion Cannon Ion Cannon > --- INVENTORY -------- Ion Engine Aluminum Leg EM Shotgun EM Shotgun [Rating: 15] Favorites ----------- Power Light Nuclear Core Engine Ion Engine Power Core Light Nuclear Core Propulsion Aluminum Leg Leg Aluminum Leg Wheel Compact Wheel Hover Unit Hover Unit Flight Unit Flight Unit Utility Small Storage Unit Device Cooling System Storage Small Storage Unit Processor Targeting Computer Protection Light Armor Plating Weapon Autogun Energy Gun EM Pulse Gun Energy Cannon Particle Cannon Ballistic Gun Autogun Launcher Grenade Launcher Build | -11 -10 -10 -9 ------- Run | Scr Mat Min Mat Slots Evolved 2 | . . . 2 Power . | . . . . Propulsion . | . . . . Utility 2 | . . . 2 Weapon . | . . . . Parts Attached 57 | 6 12 3 36 Power 9 | 1 3 1 4 Engine 8 | 1 2 1 4 Core 1 | . 1 . . Reactor . | . . . . Propulsion 15 | 2 2 2 9 Treads . | . . . . Leg 9 | 2 . . 7 Wheel 2 | . 2 . . Hover 2 | . . . 2 Flight 2 | . . 2 . Utility 8 | 1 1 . 6 Device 4 | . . . 4 Storage 1 | 1 . . . Processor 2 | . 1 . 1 Hackware . | . . . . Protection 1 | . . . 1 Artifact . | . . . . Weapon 25 | 2 6 . 17 Energy Gun 10 | 2 1 . 7 Energy Cannon 6 | . 2 . 4 Ballistic Gun 6 | . 3 . 3 Ballistic Cannon . | . . . . Launcher 3 | . . . 3 Special Weapon . | . . . . Impact Weapon . | . . . . Slashing Weapon . | . . . . Piercing Weapon . | . . . . Special Melee Weapon . | . . . . Unidentified Prototypes . | . . . . Parts Lost 27 | . 5 3 19 Power 5 | . 1 1 3 Propulsion 7 | . 2 1 4 Utility 4 | . . . 4 Weapon 11 | . 2 1 8 Highest Loss Streak 7 | . 1 3 7 Average Slot Usage (%) 86 | . 93 78 79 Engine 7 | . 5 8 9 Core 4 | . 8 . . Leg 12 | . 15 . 10 Wheel 4 | . 6 11 . Hover 3 | . . . 7 Device 5 | . . . 13 Storage 11 | . 14 14 6 Processor 11 | . 13 14 9 Protection 1 | . . . 3 Energy Gun 4 | . 5 . 5 Energy Cannon 8 | . 7 . 11 Ballistic Gun 9 | . 15 15 1 Naked Turns . | . . . . Heaviest Build 22 | 11 16 15 22 Greatest Support 26 | 20 26 26 26 Greatest Overweight (x) 4 | 1 4 2 2 Average Overweight (x) . | . . . . Largest Inventory Capacity 6 | 6 6 6 6 Average Capacity 5 | 5 6 6 5 Most Carried 6 | . 5 6 6 Average Carried 3 | . 3 4 3 Final Capacity 6 | 6 6 6 4 Final Carried 6 | . 4 6 4 Class Distribution -------------------- 91% | Mutant 8% | Scavenger-Mutant Dominant Class ---------------- Mutant | -10/Materials Mutant | -10/Mines Mutant | -9/Materials Resources | -11 -10 -10 -9 ----------- Run | Scr Mat Min Mat Matter Collected 1372 | 201 563 83 525 Remotely . | . . . . Salvage Created 2398 | . 1040 83 1275 Parts 156 | . 63 9 84 Haulers Intercepted 4 | . 1 . 3 Recyclers Shooed . | . . . . Parts Field Recycled . | . . . . Retrieved Matter . | . . . . Parts Self-Destructed . | . . . . Prevented . | . . . . Kills | -11 -10 -10 -9 ------- Run | Scr Mat Min Mat Combat Hostiles Destroyed 48 | . 15 3 30 Guns 24 | . 13 3 8 Cannons 19 | . 2 . 17 AOE 5 | . . . 5 Classes Destroyed 12 | . 9 1 2 Worker 7 | . 3 2 2 Builder 4 | . 2 . 2 Tunneler 1 | . 1 . . Hauler 4 | . 1 . 3 Recycler 2 | . 2 . . Mechanic 2 | . 1 . 1 Operator 2 | . 1 . 1 Watcher 5 | . 2 . 3 Swarmer 10 | . . 3 7 Grunt 33 | . 15 . 18 Duelist 2 | . . . 2 Sentry 3 | . . . 3 Best Kill Streak 7 | . 7 3 6 Combat Bots Only 5 | . 3 3 5 Max Kills in Single Turn 2 | . 2 2 2 Gunslinging . | . . . . Exploded 1 | . . . 1 Melee . | . . . . Uniques/NPCs Destroyed . | . . . . Combat | -11 -10 -10 -9 -------- Run | Scr Mat Min Mat Damage Taken 3128 | . 926 92 2110 Core 648 | . 231 17 400 Absorbed by Shields . | . . . . Core Remaining (%) 50 | 100 . . . Volleys Fired 207 | . 94 11 102 Largest 2 | . 2 2 2 Hottest 128 | . 108 46 128 Shots Fired 368 | . 180 15 173 Gun 209 | . 137 15 57 Cannon 146 | . 43 . 103 Launcher 13 | . . . 13 Special . | . . . . Kinetic 142 | . 110 15 17 Thermal 189 | . 46 . 143 Explosive 13 | . . . 13 Electromagnetic 24 | . 24 . . Robot Hit Streak 19 | . 10 6 19 Robot Miss Streak 4 | . 3 1 4 Penetration Max . | . . . . Secondary Targets 4 | . 3 . 1 Max Gunslinging Chain 1 | . 1 . 1 Shots Hit Robots 201 | . 90 7 104 Core Hits 109 | . 43 5 61 Critical Hits 1 | . . . 1 Critical Kills . | . . . . Critical Parts Destroyed . | . . . . Melee Attacks . | . . . . Impact . | . . . . Slashing . | . . . . Piercing . | . . . . Sneak Attacks . | . . . . Combat Hostiles . | . . . . Follow-up Attacks . | . . . . Damage Inflicted 4697 | . 1755 166 2776 Guns 1677 | . 1200 100 377 Cannons 1627 | . 306 . 1321 Explosions 1376 | . 232 66 1078 Melee . | . . . . Ramming 17 | . 17 . . Kinetic 1204 | . 1018 100 86 Thermal 2216 | . 341 66 1809 Explosive 1078 | . 197 . 881 Electromagnetic 182 | . 182 . . Impact . | . . . . Slashing . | . . . . Piercing . | . . . . Highest Corruption 9 | . . . 9 Average Corruption 5 | . . . 5 Corruption Purged . | . . . . Effects 31 | . . . 31 Message Errors 10 | . . . 10 Matter Fused 5 | . . . 5 Heat Flow Errors 2 | . . . 2 Energy Discharges 2 | . . . 2 Data Loss (minor) 2 | . . . 2 Targeting Errors 7 | . . . 7 Weapon Failures 3 | . . . 3 Overload Shots . | . . . . Overflow Damage 224 | . 102 . 122 Projectiles 13 | . 1 . 12 Explosions 211 | . 101 . 110 Melee . | . . . . Knockbacks . | . . . . Impact . | . . . . Kinetic . | . . . . Secondary . | . . . . Self-Inflicted Damage 273 | . 109 . 164 Shots 5 | . 1 . 4 Rammed 4 | . 3 1 . Targets Rammed 4 | . 3 1 . Kicked . | . . . . Crushed . | . . . . Highest Temperature 306 | . 306 6 98 Average Temperature 77 | . 88 4 20 Received Heat Transfer 921 | . 456 . 465 Siege Activations . | . . . . Robots Corrupted . | . . . . Combat Hostiles . | . . . . Parts Fried 1 | . 1 . . Impact Corruptions . | . . . . Robots Melted . | . . . . Combat Hostiles . | . . . . Parts Melted 5 | . 1 . 4 Heat Transferred 3931 | . 605 100 3226 Parts Sabotaged . | . . . . Parts Stolen . | . . . . Parts Stripped . | . . . . Power Chain Reactions . | . . . . Missiles Intercepted . | . . . . Alert | -11 -10 -10 -9 ------- Run | Scr Mat Min Mat Peak Influence 657 | . 392 219 657 Initial 109 | . . 109 85 Average 289 | . 173 193 467 Maximum Alert Level 2 | . 1 1 2 Low Security (%) 45 | 100 74 41 7 Level 1 23 | . 25 58 15 Level 2 31 | . . . 77 Level 3 . | . . . . Level 4 . | . . . . Level 5 . | . . . . High Security . | . . . . Max Security . | . . . . Squads Dispatched 12 | . 6 . 6 Investigation 12 | . 6 . 6 Extermination . | . . . . Reinforcement . | . . . . Assault . | . . . . Garrison . | . . . . Intercept . | . . . . Construction Impeded . | . . . . Haulers Reinforced . | . . . . Stealth | -11 -10 -10 -9 --------- Run | Scr Mat Min Mat Distress Signals 7 | . 3 . 4 Communications Jammed . | . . . . Distress Signals . | . . . . Times Spotted 81 | . 28 3 50 Peak Tracking Total 7 | . 5 3 7 Tactical Retreats 4 | . 1 . 3 Traps | -11 -10 -10 -9 ------- Run | Scr Mat Min Mat Traps Triggered 3 | . 1 . 2 Indirectly . | . . . . Trap Hack Attempts . | . . . . Triggered . | . . . . Disarmed . | . . . . Reprogrammed . | . . . . Reused . | . . . . Traps Extracted . | . . . . Installed . | . . . . Triggered . | . . . . Machines | -11 -10 -10 -9 ---------- Run | Scr Mat Min Mat Machines Disabled 18 | . 13 4 1 Max in Single Turn 3 | . 3 3 1 Machines Sabotaged 4 | . 1 . 3 Garrisons Compromised . | . . . . Overloaded Fab Kills . | . . . . Fab Network Shutdowns . | . . . . Hacking | -11 -10 -10 -9 --------- Run | Scr Mat Min Mat Machines Accessed 13 | . 7 . 6 Terminals 11 | . 6 . 5 Fabricators . | . . . . Repair Stations . | . . . . Recycling Units 1 | . 1 . . Scanalyzers 1 | . . . 1 Garrison Access . | . . . . Total Hacks 21 | . 12 . 9 Successful 13 | . 8 . 5 Failed 8 | . 4 . 4 Catastrophic 1 | . 1 . . Database Lockouts . | . . . . Manual 24 | . 15 . 9 Terminals 19 | . 11 . 8 Fabricators . | . . . . Repair Stations . | . . . . Recycling Units 1 | . 1 . . Scanalyzers 1 | . . . 1 Garrison Access . | . . . . Terminal Hacks . | . . . . Fabricator Hacks . | . . . . Repair Station Hacks . | . . . . Recycling Unit Hacks . | . . . . Scanalyzer . | . . . . Garrison Access Hacks . | . . . . Unauthorized Hacks 13 | . 8 . 5 Terminals 11 | . 7 . 4 Detonate 3 | . 3 . . Sabotage 6 | . 2 . 4 Search 2 | . 2 . . Fabricators . | . . . . Repair Stations . | . . . . Recycling Units 1 | . 1 . . Tunnel 1 | . 1 . . Scanalyzers 1 | . . . 1 Extract 1 | . . . 1 Garrison Access . | . . . . Data Cores Recovered . | . . . . Used . | . . . . Hacking Detections 5 | . 4 . 1 Full Trace Events 1 | . . . 1 Feedback Events . | . . . . Feedback Blocked . | . . . . Robot Schematics Acquired . | . . . . Robots Built . | . . . . Matter . | . . . . Time . | . . . . Total Robot Build Rating . | . . . . Part Schematics Acquired 2 | . . . 2 Parts Built . | . . . . Matter . | . . . . Time . | . . . . Total Part Build Rating . | . . . . Parts Repaired . | . . . . Time . | . . . . Parts Recycled . | . . . . Recycled Matter . | . . . . Retrieved Matter . | . . . . Retrieved Components . | . . . . Parts Scanalyzed . | . . . . Part Schematics Acquired . | . . . . Parts Damaged . | . . . . Bothacking | -11 -10 -10 -9 ------------ Run | Scr Mat Min Mat Used RIF Installer . | . . . . Robots Hacked . | . . . . Non-combat . | . . . . Combat . | . . . . Robot Hacks Applied . | . . . . Relay Couplers Released . | . . . . Robots Rewired . | . . . . Allies Hacked . | . . . . Hacks Repelled . | . . . . Allies | -11 -10 -10 -9 -------- Run | Scr Mat Min Mat Total Allies . | . . . . Largest Group . | . . . . Highest-Rated Group . | . . . . Highest-Rated Ally . | . . . . Total Orders . | . . . . Ally Attacks . | . . . . Total Damage . | . . . . Kills . | . . . . Allies Corrupted . | . . . . Allies Melted . | . . . . Intel | -11 -10 -10 -9 ------- Run | Scr Mat Min Mat Robot Analysis Total . | . . . . Derelict Logs Recovered 1 | . . 1 . Drone Launches . | . . . . Drone Recoveries . | . . . . Exploration | -11 -10 -10 -9 ------------- Run | Scr Mat Min Mat Turns Passed 2399 | 60 1210 155 974 Spaces Moved 1459 | 47 701 215 496 Core 16 | 8 2 1 5 Treads . | . . . . Legs 811 | 39 500 . 272 Wheels 252 | . 199 53 . Hover 214 | . . . 214 Flight 166 | . . 161 5 Fastest Speed 37 | 50 90 37 37 Average Speed 109 | 110 121 52 116 Slowest Speed 250 | 120 250 150 150 Overloaded Moves . | . . . . Propulsion Burnouts . | . . . . Robots Hopped 2 | . . 2 . Cave-ins Triggered 2 | . . . 2 Exploration Rate (%) 45 | 3 79 40 59 Regions Visited 3 Branch Regions 1 Pre-discovered Areas 1 | . 1 . . Known Exits Taken . | . . . . Unknown Exits Taken 3 | 1 1 1 . Scrap Searched 1 | . . 1 . Spaces Dug . | . . . . Terrain Destroyed 220 | . 115 19 86 Melee . | . . . . Projectile 3 | . . . 3 AOE 217 | . 115 19 83 Terrain Rammed . | . . . . Walls Destroyed . | . . . . Machines Disabled . | . . . . Actions | -11 -10 -10 -9 --------- Run | Scr Mat Min Mat Total 1895 | 52 893 241 709 Wait 146 | . 78 12 56 Move 1450 | 46 700 210 494 Hop 2 | . . 2 . Pick Up 10 | . 4 . 6 Fast Attach 37 | 6 6 3 22 Attach 10 | . 2 . 8 Detach 7 | . 2 2 3 Swap 10 | . 4 . 6 Drop 10 | . . . 10 Fire 207 | . 94 11 102 Melee . | . . . . Ram 1 | . . 1 . Kick 3 | . 3 . . Crush . | . . . . Escape Stasis 2 | . . . 2 Rewire . | . . . . Trap . | . . . . Miscellaneous . | . . . . Route ------- -11/Scrapyard -10/Materials (discovered 4 exits: *Mat x2 / [*Min x2]) -10/Mines -9/Materials (discovered 1 exit: [*Min]) History --------- Turn | Location | Event 11 | -11/Scrapyard | Discovered new exit (range 15) 61 | -11/Scrapyard | Entered Materials 301 | -10/Materials | Build established: Mutant 326 | -10/Materials | Discovered new exit (range 5) 426 | -10/Materials | Discovered new exit (range 8) 506 | -10/Materials | Discovered new exit (range 11) 815 | -10/Materials | Discovered new exit (range 16) 947 | -10/Materials | Core integrity fell below 50% 1259 | -10/Materials | Core integrity fell below 20% 1271 | -10/Materials | Entered Mines 1346 | -10/Mines | Met a Derelict bent on vengeance 1364 | -10/Mines | Lost 3 parts (1p1n1w) 1422 | -10/Mines | Discovered new exit (range 12) 1426 | -10/Mines | Entered Materials 1426 | -9/Materials | Evolved 2 slots: Utility x2 1803 | -9/Materials | Discovered new exit (range 15) 1911 | -9/Materials | Lost 6 parts (1p1n2u2w) 1943 | -9/Materials | Core integrity fell below 50% 1984 | -9/Materials | Lost 7 parts (1p2n4w) 2037 | -9/Materials | Crushed by falling debris 2039 | -9/Materials | Crushed by falling debris 2070 | -9/Materials | Lost 3 parts (1n2u) 2243 | -9/Materials | Core integrity fell below 20% 2400 | -9/Materials | Destroyed by S-10 Pest with Light Assault Rifle Last Messages --------------- 02259_ System corrupted: Ion Cannon targeting data glitched. 02269_ K-01 Serf collects debris. 02270_ G-47 Trooper destroyed. 02273_ Acquired 13 matter. 02273_ K-01 Serf collects debris. 02275_ Acquired 33 matter. 02276_ K-01 Serf collects debris. 02277_ Acquired 16 matter. 02277_ K-01 Serf collects debris. 02281_ System corrupted: Component data lost. 02281_ K-01 Serf collects debris. 02312_ Y-45 Defender destroyed. 02347_ X,KQN%ZG76K&G/ KK288 02356_ Ion Cannon destroyed. 02363_ Flight Unit melted. 02363_ S-10 Pest destroyed. 02375_ System corrupted: Heat flow error (+150). 02381_ R-06 Scavenger collects Lgt. Assault Rifle. 02391_ Recalibrator melted. 02391_ M-13 Machinist destroyed. Map ----- +----------------------------------------------------+ | ??????# "# #???????# #?????????????????? | | ??????# "" # ######### #?????????????????? | | ??????## #### + #? """ ??????????????????? | | ???????# # #? "R ??????????????????? | | ???????# # #??"""???????????????????? | | ???????# " # #?? ???????????????????? | | ######## " # ####+###?????????????????? | | " # ## ######????????????? | | ##/###### | #????????????? | | ![%[ % % % *% #????????????? | | !*!===[ % "##### #????????????? | | = %![* ##???# ## #????????????? | | "########+######### #????###%#### #????????????? | | ## #???# #??????#=#??# +????????????? | | ]]## #???# #??????# #??# #????????????? | | [[## / ? #??????# #??# "????????????? | | [[## """ ##### #??????# #??# # ???????????? | | !!## """"" #???? ???????# #??# ###??????????? | | !!## """"" #???? ???????# #??# +????????????? | | ###### """"" #???? ???????# #??? #????????????? | | #??# """ #???? ???????#=#??? #????????????? | | #??# ??? #???? ????####+###? #????????????? | | #??###????? #???? ????# %= #? #????????????? | | #???????????#???? ##??# !!! #? #????????????? | | #?????????????????# # !!! #? #????????????? | | ###?????????????????# T s@!!! #? ?????????????? | | #?????????????????#ss # #?????????????????? | | #???????????????# ??# #?????????????????? | | #???????????????# ????########?????????????????? | | " #??????????????????????????????????????????????? | | " #??????????????????????????????????????????????? | | #??????????????????????????????????????????????? | | ###??????????????????????????????????????????????? | | ?????????????????????????????????????????????????? | | ?????????????????????????????????????????????????? | | ?????????????????????????????????????????????????? | | ?????????????????????????????????????????????????? | | ?????????????????????????????????????????????????? | | ?????????????????????????????????????????????????? | | ?????????????????????????????????????????????????? | | ?????????????????????????????????????????????????? | | ?????????????????????????????????????????????????? | | ?????????????????????????????????????????????????? | | ?????????????????????????????????????????????????? | | ?????????????????????????????????????????????????? | | ?????????????????????????????????????????????????? | | ?????????????????????????????????????????????????? | | ?????????????????????????????????????????????????? | | ?????????????????????????????????????????????????? | | | +----------------------------------------------------+ Best States ------------- Heat Dissipation 72 Energy Generation 14 Energy Capacity 265 Matter Stores 300 Matter Capacity 300 Sight Range 16 Terrain Scan Density 10 Armor Coverage 150 Evasion (%) 62 Targeting Accuracy 5 Salvage Targeting 1 Item Schematics ----------------- Imp. Hover Unit | -9/Materials | Extracted Imp. Treads | -9/Materials | Extracted Robot Schematics ------------------ None Fabricated ------------ Nothing Alien Tech Used ----------------- None Achievements -------------- Close Call Challenges ------------ None Game ------ Seed RecoilSniperPlating Manual? 0 Play Time 00:25:24 Cumulative 40.9 hours Start 2020.10.01 @ 03:44:27 End 2020.10.01 @ 04:08:31 Sessions 1 Manual Loads 0 Difficulty Rogue Special Mode None Game No. 43 Rogue 42 Adventurer 1 Explorer 0 Win Type - Total 2 Types 2/0/0/0/0/0/0/0/0 Lore% 30 Gallery% 45 Achievement% 37 Wizard Run 0 Options --------- ASCII 0 Keyboard 1 Movement Numpad Keybinds 0 Fullscreen 1 Font 18/SmallcapsGlow Map View 76x50 Tactical HUD 1 Map Filters NONE Filters NONE Steam 1 RUN: c4e2a81e-4c09-4b7c-8359-0abfe9a44c3b